[Event "European Online Club-ch-G 2021"]
[Site "Online"]
[Date "2021.03.27"]
[Round "3.20"]
[White "Hasanzade, Toghrul"]
[Black "Ongut, Tamas Gunes"]
[Result "1/2-1/2"]
[ECO "A65"]
[WhiteElo "2322"]
[BlackElo "2314"]
[Annotator "NA"]
[PlyCount "145"]
[EventDate "2021.03.27"]
[EventType "team-tourn"]
[EventCountry "NET"]
[SourceTitle "playchess.com"]
[Source "ChessBase"]
[SourceQuality "1"]
[TimeControl "900+5"]

1. d4 {[%emt 0:00:00]} Nf6 {[%emt 0:00:05]} 2. c4 {[%emt 0:00:08]} g6 {[%emt 0:00:02]} 3. Nc3 {[%emt 0:00:06]} Bg7 {[%emt 0:00:03]} 4. e4 {[%emt 0:00:02]} O-O {[%emt 0:00:03]} 5. f3 {[%emt 0:00:05]} c5 {[%emt 0:00:10]} 6. d5 {[%emt 0:00:31]} e6 {[%emt 0:01:23]} 7. Be3 {[%emt 0:00:23]} d6 {[%emt 0:00:06]} 8. Qd2 {[%emt 0:00:11]} exd5 {[%emt 0:00:11]} 9. cxd5 {[%emt 0:00:03]} a6 {[%emt 0:00:16]} 10. g4 {[%emt 0:00:38]} h5 {[%emt 0:00:16]} 11. h3 {[%emt 0:00:03]} b5 {[%emt 0:00:13]} 12. Nge2 {[%emt 0:00:09]} Nbd7 {[%emt 0:00:10]} 13. Nf4 {[%emt 0:00:50]} Ne5 {[%emt 0:00:37]} 14. Be2 {[%emt 0:00:05]} h4 {[%emt 0:00:46]} 15. Ng2 {[%emt 0:00:16]} Nh7 {[%emt 0:00:14]} 16. f4 {[%emt 0:00:11]} Nc4 {[%emt 0:00:27]} 17. Bxc4 {[%emt 0:00:03]} bxc4 {[%emt 0:00:02]} 18. Bf2 {[%emt 0:00:14]} Re8 {[%emt 0:00:52]} 19. O-O-O {[%emt 0:00:06]} Qa5 {[%emt 0:00:36]} 20. Nxh4 {[%emt 0:00:12]} Rb8 {[%emt 0:01:40]} 21. e5 {[%emt 0:02:18]} dxe5 {[%emt 0:00:10]} 22. Rhe1 {[%emt 0:00:17]} e4 {[%emt 0:00:42]} 23. f5 {[%emt 0:00:45]} g5 {[%emt 0:01:03]} 24. Bg3 {[%emt 0:01:03]} Bd7 {[%emt 0:02:16]} 25. Bxb8 {[%emt 0:00:12]} Rxb8 {[%emt 0:00:04]} 26. f6 {[%emt 0:00:17]} Bxf6 {[%emt 0:00:09]} 27. Nf5 {[%emt 0:00:14]} Ba4 {[%emt 0:00:40]} 28. Rxe4 {[%emt 0:02:10]} Bxd1 {[%emt 0:00:26]} 29. Kxd1 {[%emt 0:00:03]} Rd8 {[%emt 0:01:09]} 30. d6 {[%emt 0:00:55]} Nf8 {[%emt 0:00:20]} 31. Rxc4 {[%emt 0:00:48]} Ne6 {[%emt 0:00:10]} 32. Ne4 {[%emt 0:00:15]} Qxd2+ {[%emt 0:00:12]} 33. Kxd2 {[%emt 0:00:03]} Bxb2 {[%emt 0:00:12]} 34. Nxc5 {[%emt 0:00:03]} Ba3 {[%emt 0:00:28]} 35. Ne4 {[%emt 0:00:29]} a5 {[%emt 0:00:21]} 36. Kc2 {[%emt 0:00:22]} Bb4 {[%emt 0:00:34]} 37. Kc1 {[%emt 0:00:47]} Nf4 {[%emt 0:00:35]} 38. Nxg5 {[%emt 0:00:19]} Bxd6 {[%emt 0:00:03]} 39. Nxd6 {[%emt 0:00:04]} Nd3+ {[%emt 0:00:02]} 40. Kc2 {[%emt 0:00:51]} Rxd6 {[%emt 0:00:03]} 41. Ne4 {[%emt 0:00:06]} Rd8 {[%emt 0:00:04]} 42. g5 {[%emt 0:00:05]} Nb4+ {[%emt 0:00:05]} 43. Kb3 {[%emt 0:00:08]} Rd3+ {[%emt 0:00:04]} 44. Rc3 {[%emt 0:00:16]} Rd4 {[%emt 0:00:06]} 45. Nf6+ {[%emt 0:00:08]} Kg7 {[%emt 0:00:03]} 46. a3 {[%emt 0:00:02]} a4+ {[%emt 0:00:09]} 47. Kb2 {[%emt 0:00:27]} Nd3+ {[%emt 0:00:05]} 48. Kc2 {[%emt 0:00:10]} Nf4 {[%emt 0:00:10]} 49. Rf3 {[%emt 0:00:09]} Ne6 {[%emt 0:00:07]} 50. Rg3 {[%emt 0:00:22]} Nxg5 {[%emt 0:00:10]} 51. Kc3 {[%emt 0:00:21]} Rh4 {[%emt 0:00:09]} 52. Rxg5+ {[%emt 0:00:23]} Kxf6 {[%emt 0:00:02]} 53. Rg3 {[%emt 0:00:02]} Ke5 {[%emt 0:00:04]} 54. Re3+ {[%emt 0:00:03]} Kf4 {[%emt 0:00:10]} 55. Rd3 {[%emt 0:00:03]} f5 {[%emt 0:00:03]} 56. Kb4 {[%emt 0:00:03]} Ke4 {[%emt 0:00:05]} 57. Rd8 {[%emt 0:00:04]} Rxh3 {[%emt 0:00:03]} 58. Kxa4 {[%emt 0:00:02]} f4 {[%emt 0:00:02]} 59. Kb4 {[%emt 0:00:03]} f3 {[%emt 0:00:03]} 60. Re8+ {[%emt 0:00:02]} Kd3 {[%emt 0:00:04]} 61. a4 {[%emt 0:00:03]} Rh4+ {[%emt 0:00:03]} 62. Kb5 {[%emt 0:00:02]} Rf4 {[%emt 0:00:04]} 63. Re1 {[%emt 0:00:04]} f2 {[%emt 0:00:02]} 64. Rf1 {[%emt 0:00:04]} Ke2 {[%emt 0:00:02]} 65. Ra1 {[%emt 0:00:15]} f1=Q {[%emt 0:00:09]} 66. Rxf1 {[%emt 0:00:05]} Kxf1 {[%emt 0:00:06]} 67. a5 {[%emt 0:00:03]} Ke2 {[%emt 0:00:04]} 68. a6 {[%emt 0:00:02]} Kd3 {[%emt 0:00:04]} 69. a7 {[%emt 0:00:02]} Rf8 {[%emt 0:00:02]} 70. Kb6 {[%emt 0:00:01]} Kc4 {[%emt 0:00:03]} 71. Kb7 {[%emt 0:00:02]} Rf7+ {[%emt 0:00:08]} 72. Kb8 {[%emt 0:00:02]} Rxa7 {[%emt 0:00:16]} 73. Kxa7 {[%emt 0:00:03]} 1/2-1/2

[Event "European Online Club-ch-G 2021"]
[Site "Online"]
[Date "2021.03.27"]
[Round "4.1"]
[White "Altun, Arda"]
[Black "Sevdimaliyev, Urfan"]
[Result "0-1"]
[ECO "B51"]
[WhiteElo "2074"]
[BlackElo "2369"]
[Annotator "NA"]
[PlyCount "78"]
[EventDate "2021.03.27"]
[EventType "team-tourn"]
[EventCountry "NET"]
[SourceTitle "playchess.com"]
[Source "ChessBase"]
[SourceQuality "1"]
[TimeControl "900+5"]

1. e4 {[%emt 0:00:00]} c5 {[%emt 0:00:07]} 2. Nf3 {[%emt 0:00:04]} Nc6 {[%emt 0:00:11]} 3. Bb5 {[%emt 0:00:09]} d6 {[%emt 0:00:03]} 4. O-O {[%emt 0:00:13]} Bd7 {[%emt 0:00:22]} 5. Re1 {[%emt 0:00:03]} Nf6 {[%emt 0:00:17]} 6. c3 {[%emt 0:00:05]} a6 {[%emt 0:00:03]} 7. Bf1 {[%emt 0:00:04]} Bg4 {[%emt 0:00:04]} 8. h3 {[%emt 0:00:02]} Bxf3 {[%emt 0:00:02]} 9. Qxf3 {[%emt 0:00:01]} e6 {[%emt 0:00:04]} 10. d3 {[%emt 0:00:03]} Be7 {[%emt 0:00:02]} 11. Be3 {[%emt 0:00:10]} O-O {[%emt 0:00:06]} 12. Nd2 {[%emt 0:00:10]} Rc8 {[%emt 0:01:04]} 13. Qg3 {[%emt 0:00:34]} b5 {[%emt 0:01:22]} 14. f4 {[%emt 0:00:45]} Nd7 {[%emt 0:00:23]} 15. Qf3 {[%emt 0:00:18]} Nb6 {[%emt 0:01:04]} 16. g4 {[%emt 0:00:32]} d5 {[%emt 0:01:03]} 17. e5 {[%emt 0:01:27]} d4 {[%emt 0:02:01]} 18. Bf2 {[%emt 0:00:08]} Nd5 {[%emt 0:01:03]} 19. c4 {[%emt 0:02:14]} Ne3 {[%emt 0:00:42]} 20. Bxe3 {[%emt 0:00:34]} dxe3 {[%emt 0:00:12]} 21. Qxe3 {[%emt 0:00:04]} Nd4 {[%emt 0:00:06]} 22. Rec1 {[%emt 0:01:19]} f6 {[%emt 0:01:09]} 23. exf6 {[%emt 0:00:12]} Bxf6 {[%emt 0:00:20]} 24. Bg2 {[%emt 0:01:47]} e5 {[%emt 0:00:48]} 25. Bd5+ {[%emt 0:01:17]} Kh8 {[%emt 0:00:27]} 26. Nf3 {[%emt 0:00:31]} exf4 {[%emt 0:00:13]} 27. Qf2 {[%emt 0:00:03]} Nxf3+ {[%emt 0:00:07]} 28. Qxf3 {[%emt 0:00:04]} Bxb2 {[%emt 0:00:05]} 29. Rab1 {[%emt 0:00:13]} Bxc1 {[%emt 0:00:03]} 30. Rxc1 {[%emt 0:00:00]} b4 {[%emt 0:00:08]} 31. Re1 {[%emt 0:00:10]} a5 {[%emt 0:00:17]} 32. Re5 {[%emt 0:00:16]} a4 {[%emt 0:00:25]} 33. g5 {[%emt 0:01:12]} b3 {[%emt 0:00:15]} 34. axb3 {[%emt 0:00:03]} axb3 {[%emt 0:00:07]} 35. Qh5 {[%emt 0:01:31]} b2 {[%emt 0:00:47]} 36. Re1 {[%emt 0:00:04]} f3 {[%emt 0:00:11]} 37. Bxf3 {[%emt 0:00:17]} Qd4+ {[%emt 0:00:24]} 38. Kg2 {[%emt 0:00:07]} Rb8 {[%emt 0:00:18]} 39. Rb1 {[%emt 0:01:11]} Qxd3 {[%emt 0:00:04]} 0-1

[Event "European Online Club-ch-G 2021"]
[Site "Online"]
[Date "2021.03.27"]
[Round "4.2"]
[White "Babayev, Talib"]
[Black "Danaci, Ege"]
[Result "1-0"]
[ECO "B12"]
[WhiteElo "2282"]
[BlackElo "1996"]
[Annotator "NA"]
[PlyCount "67"]
[EventDate "2021.03.27"]
[EventType "team-tourn"]
[EventCountry "NET"]
[SourceTitle "playchess.com"]
[Source "ChessBase"]
[SourceQuality "1"]
[TimeControl "900+5"]

1. e4 {[%emt 0:00:00]} c6 {[%emt 0:00:07]} 2. d4 {[%emt 0:00:04]} d5 {[%emt 0:00:01]} 3. e5 {[%emt 0:00:03]} Bf5 {[%emt 0:00:03]} 4. Nc3 {[%emt 0:00:02]} e6 {[%emt 0:00:05]} 5. g4 {[%emt 0:00:03]} Bg6 {[%emt 0:00:06]} 6. Nge2 {[%emt 0:00:02]} h6 {[%emt 0:00:30]} 7. Be3 {[%emt 0:00:06]} Nd7 {[%emt 0:00:06]} 8. f4 {[%emt 0:00:06]} h5 {[%emt 0:00:36]} 9. f5 {[%emt 0:00:03]} exf5 {[%emt 0:00:02]} 10. g5 {[%emt 0:00:02]} Qb6 {[%emt 0:01:33]} 11. Qd2 {[%emt 0:01:01]} Bb4 {[%emt 0:01:21]} 12. Nf4 {[%emt 0:00:10]} Ne7 {[%emt 0:00:05]} 13. O-O-O {[%emt 0:00:09]} Nf8 {[%emt 0:00:12]} 14. h4 {[%emt 0:00:08]} Ne6 {[%emt 0:00:02]} 15. a3 {[%emt 0:00:19]} Bxc3 {[%emt 0:00:57]} 16. Qxc3 {[%emt 0:00:02]} Kd7 {[%emt 0:00:28]} 17. Be2 {[%emt 0:00:16]} Qc7 {[%emt 0:01:03]} 18. Bf3 {[%emt 0:00:15]} a5 {[%emt 0:00:27]} 19. Kd2 {[%emt 0:00:06]} a4 {[%emt 0:00:11]} 20. Ke2 {[%emt 0:00:03]} f6 {[%emt 0:01:10]} 21. gxf6 {[%emt 0:00:30]} gxf6 {[%emt 0:00:04]} 22. Nxe6 {[%emt 0:00:28]} Kxe6 {[%emt 0:00:02]} 23. Bf4 {[%emt 0:00:05]} Qd7 {[%emt 0:02:59]} 24. Rhg1 {[%emt 0:00:52]} Kf7 {[%emt 0:00:25]} 25. exf6 {[%emt 0:00:35]} Qe6+ {[%emt 0:00:36]} 26. Be5 {[%emt 0:00:32]} Ng8 {[%emt 0:00:25]} 27. Rxg6 {[%emt 0:00:17]} Kxg6 {[%emt 0:00:03]} 28. Rg1+ {[%emt 0:00:04]} Kf7 {[%emt 0:00:21]} 29. Rg7+ {[%emt 0:00:04]} Ke8 {[%emt 0:00:20]} 30. f7+ {[%emt 0:00:03]} Kf8 {[%emt 0:00:15]} 31. fxg8=Q+ {[%emt 0:00:08]} Rxg8 {[%emt 0:00:03]} 32. Qc5+ {[%emt 0:00:02]} Ke8 {[%emt 0:00:02]} 33. Bxh5+ {[%emt 0:00:03]} Kd8 {[%emt 0:00:02]} 34. Qb6+ {[%emt 0:00:02]} 1-0

[Event "European Online Club-ch-G 2021"]
[Site "Online"]
[Date "2021.03.27"]
[Round "4.3"]
[White "Yildirim, Ibrahim Halil"]
[Black "Gasimov, Parviz"]
[Result "1/2-1/2"]
[ECO "C07"]
[WhiteElo "1783"]
[BlackElo "2337"]
[Annotator "NA"]
[PlyCount "130"]
[EventDate "2021.03.27"]
[EventType "team-tourn"]
[EventCountry "NET"]
[SourceTitle "playchess.com"]
[Source "ChessBase"]
[SourceQuality "1"]
[TimeControl "900+5"]

1. e4 {[%emt 0:00:00]} e6 {[%emt 0:00:04]} 2. d4 {[%emt 0:00:02]} d5 {[%emt 0:00:05]} 3. Nd2 {[%emt 0:00:01]} c5 {[%emt 0:00:18]} 4. Ngf3 {[%emt 0:00:04]} cxd4 {[%emt 0:00:03]} 5. Nxd4 {[%emt 0:00:01]} Nf6 {[%emt 0:00:04]} 6. Bd3 {[%emt 0:02:31]} e5 {[%emt 0:00:26]} 7. N4f3 {[%emt 0:00:11]} dxe4 {[%emt 0:00:05]} 8. Nxe4 {[%emt 0:00:01]} Nxe4 {[%emt 0:00:04]} 9. Bxe4 {[%emt 0:00:01]} Qxd1+ {[%emt 0:00:02]} 10. Kxd1 {[%emt 0:00:01]} Nd7 {[%emt 0:01:36]} 11. Re1 {[%emt 0:00:09]} f6 {[%emt 0:00:05]} 12. c3 {[%emt 0:00:07]} Nc5 {[%emt 0:00:04]} 13. Bc2 {[%emt 0:00:19]} Be6 {[%emt 0:00:39]} 14. Be3 {[%emt 0:00:35]} O-O-O+ {[%emt 0:00:30]} 15. Kc1 {[%emt 0:00:15]} b6 {[%emt 0:01:37]} 16. Rd1 {[%emt 0:00:23]} Rxd1+ {[%emt 0:00:17]} 17. Kxd1 {[%emt 0:00:10]} Be7 {[%emt 0:00:05]} 18. b3 {[%emt 0:00:15]} Bg4 {[%emt 0:01:11]} 19. h3 {[%emt 0:01:17]} Bh5 {[%emt 0:00:05]} 20. b4 {[%emt 0:02:28]} Rd8+ {[%emt 0:00:31]} 21. Ke2 {[%emt 0:00:18]} e4 {[%emt 0:00:40]} 22. bxc5 {[%emt 0:00:05]} exf3+ {[%emt 0:00:05]} 23. gxf3 {[%emt 0:00:02]} Bxc5 {[%emt 0:00:06]} 24. Bxh7 {[%emt 0:01:20]} g6 {[%emt 0:02:27]} 25. Rg1 {[%emt 0:00:11]} Bxe3 {[%emt 0:00:44]} 26. fxe3 {[%emt 0:00:18]} Kc7 {[%emt 0:00:12]} 27. Kf2 {[%emt 0:05:00]} Rd2+ {[%emt 0:00:14]} 28. Kg3 {[%emt 0:00:04]} Rxa2 {[%emt 0:00:49]} 29. Kf4 {[%emt 0:00:48]} Rf2 {[%emt 0:00:52]} 30. Bxg6 {[%emt 0:00:18]} Rxf3+ {[%emt 0:00:04]} 31. Ke4 {[%emt 0:00:03]} Rxh3 {[%emt 0:00:04]} 32. Bxh5 {[%emt 0:00:02]} Rxh5 {[%emt 0:00:03]} 33. Rg7+ {[%emt 0:00:02]} Kb8 {[%emt 0:00:02]} 34. Rf7 {[%emt 0:00:07]} Rc5 {[%emt 0:00:17]} 35. Kd4 {[%emt 0:00:11]} Rc6 {[%emt 0:00:05]} 36. c4 {[%emt 0:00:09]} Rd6+ {[%emt 0:00:03]} 37. Kc3 {[%emt 0:00:04]} a5 {[%emt 0:00:28]} 38. e4 {[%emt 0:00:07]} Re6 {[%emt 0:00:07]} 39. Kd4 {[%emt 0:00:06]} Rd6+ {[%emt 0:00:03]} 40. Kc3 {[%emt 0:00:02]} Rc6 {[%emt 0:01:45]} 41. Kd4 {[%emt 0:00:08]} a4 {[%emt 0:00:05]} 42. Kd5 {[%emt 0:00:06]} Rc5+ {[%emt 0:00:03]} 43. Kd4 {[%emt 0:00:04]} a3 {[%emt 0:00:21]} 44. Rxf6 {[%emt 0:00:02]} a2 {[%emt 0:00:21]} 45. Rf1 {[%emt 0:00:02]} Ra5 {[%emt 0:00:04]} 46. Ra1 {[%emt 0:00:01]} Kc7 {[%emt 0:00:02]} 47. Kc3 {[%emt 0:00:03]} Kd6 {[%emt 0:00:04]} 48. Kb3 {[%emt 0:00:05]} Kc5 {[%emt 0:00:25]} 49. e5 {[%emt 0:00:13]} Kc6 {[%emt 0:00:07]} 50. Rxa2 {[%emt 0:00:08]} Rxe5 {[%emt 0:00:03]} 51. Rd2 {[%emt 0:00:07]} Kc5 {[%emt 0:00:05]} 52. Rd5+ {[%emt 0:00:03]} Rxd5 {[%emt 0:00:02]} 53. cxd5 {[%emt 0:00:01]} Kxd5 {[%emt 0:00:03]} 54. Kb4 {[%emt 0:00:01]} Kc6 {[%emt 0:00:01]} 55. Kc4 {[%emt 0:00:01]} b5+ {[%emt 0:00:02]} 56. Kb4 {[%emt 0:00:02]} Kb6 {[%emt 0:00:02]} 57. Kb3 {[%emt 0:00:01]} Kc5 {[%emt 0:00:02]} 58. Kc3 {[%emt 0:00:01]} b4+ {[%emt 0:00:01]} 59. Kb3 {[%emt 0:00:01]} Kb5 {[%emt 0:00:02]} 60. Kb2 {[%emt 0:00:02]} Kc4 {[%emt 0:00:01]} 61. Kc2 {[%emt 0:00:02]} b3+ {[%emt 0:00:03]} 62. Kb2 {[%emt 0:00:01]} Kb4 {[%emt 0:00:02]} 63. Kb1 {[%emt 0:00:01]} Kc3 {[%emt 0:00:03]} 64. Kc1 {[%emt 0:00:02]} b2+ {[%emt 0:00:02]} 65. Kb1 {[%emt 0:00:01]} Kb3 {[%emt 0:00:02]} 1/2-1/2

[Event "European Online Club-ch-G 2021"]
[Site "Online"]
[Date "2021.03.27"]
[Round "4.4"]
[White "Hasanzade, Toghrul"]
[Black "Ozata, Doruk"]
[Result "1-0"]
[ECO "A36"]
[WhiteElo "2322"]
[BlackElo "1646"]
[Annotator "NA"]
[PlyCount "103"]
[EventDate "2021.03.27"]
[EventType "team-tourn"]
[EventCountry "NET"]
[SourceTitle "playchess.com"]
[Source "ChessBase"]
[SourceQuality "1"]
[TimeControl "900+5"]

1. e4 {[%emt 0:00:00]} c5 {[%emt 0:00:03]} 2. c4 {[%emt 0:00:12]} Nc6 {[%emt 0:00:18]} 3. Nc3 {[%emt 0:00:22]} d6 {[%emt 0:00:07]} 4. g3 {[%emt 0:00:03]} g6 {[%emt 0:00:06]} 5. Bg2 {[%emt 0:00:04]} Bg7 {[%emt 0:00:01]} 6. Nge2 {[%emt 0:00:02]} e6 {[%emt 0:00:02]} 7. d3 {[%emt 0:00:02]} Nd4 {[%emt 0:00:03]} 8. O-O {[%emt 0:00:03]} Ne7 {[%emt 0:00:01]} 9. Nxd4 {[%emt 0:00:14]} cxd4 {[%emt 0:00:04]} 10. Ne2 {[%emt 0:00:02]} O-O {[%emt 0:00:04]} 11. b4 {[%emt 0:00:04]} a5 {[%emt 0:00:05]} 12. Bb2 {[%emt 0:00:09]} e5 {[%emt 0:00:16]} 13. a3 {[%emt 0:00:04]} axb4 {[%emt 0:00:27]} 14. axb4 {[%emt 0:00:04]} Rxa1 {[%emt 0:00:01]} 15. Qxa1 {[%emt 0:00:03]} Qb6 {[%emt 0:00:02]} 16. b5 {[%emt 0:00:36]} Be6 {[%emt 0:00:19]} 17. Qa3 {[%emt 0:00:15]} Rd8 {[%emt 0:00:45]} 18. Ra1 {[%emt 0:00:08]} Bg4 {[%emt 0:02:34]} 19. Nc1 {[%emt 0:00:14]} Bh6 {[%emt 0:00:10]} 20. Qa5 {[%emt 0:00:13]} Qxa5 {[%emt 0:00:16]} 21. Rxa5 {[%emt 0:00:06]} Bd2 {[%emt 0:01:15]} 22. Ra7 {[%emt 0:00:14]} Rb8 {[%emt 0:00:08]} 23. Nb3 {[%emt 0:00:29]} Bb4 {[%emt 0:00:06]} 24. h3 {[%emt 0:00:18]} Be6 {[%emt 0:00:22]} 25. f4 {[%emt 0:00:47]} f6 {[%emt 0:00:26]} 26. Bf3 {[%emt 0:00:12]} Nc8 {[%emt 0:01:24]} 27. Ra4 {[%emt 0:00:07]} Bc5 {[%emt 0:00:02]} 28. Kg2 {[%emt 0:00:15]} Kf8 {[%emt 0:00:23]} 29. Bg4 {[%emt 0:00:06]} Ke7 {[%emt 0:00:07]} 30. Bxe6 {[%emt 0:00:17]} Kxe6 {[%emt 0:00:02]} 31. Kf3 {[%emt 0:00:02]} Ne7 {[%emt 0:00:10]} 32. g4 {[%emt 0:00:29]} Kd7 {[%emt 0:00:49]} 33. g5 {[%emt 0:00:09]} Rf8 {[%emt 0:00:46]} 34. Kg4 {[%emt 0:00:21]} exf4 {[%emt 0:01:36]} 35. gxf6 {[%emt 0:00:36]} Rxf6 {[%emt 0:00:12]} 36. Bxd4 {[%emt 0:00:25]} Bxd4 {[%emt 0:00:43]} 37. Nxd4 {[%emt 0:00:04]} Ng8 {[%emt 0:00:23]} 38. Nf3 {[%emt 0:00:18]} Rf8 {[%emt 0:00:43]} 39. Ra1 {[%emt 0:00:48]} Kc7 {[%emt 0:00:43]} 40. Ng5 {[%emt 0:00:23]} h5+ {[%emt 0:00:33]} 41. Kf3 {[%emt 0:00:10]} Kd7 {[%emt 0:00:02]} 42. Ra7 {[%emt 0:00:10]} Rb8 {[%emt 0:00:14]} 43. Kxf4 {[%emt 0:00:04]} Nf6 {[%emt 0:00:02]} 44. e5 {[%emt 0:00:10]} dxe5+ {[%emt 0:00:26]} 45. Kxe5 {[%emt 0:00:04]} Ke7 {[%emt 0:00:03]} 46. c5 {[%emt 0:00:11]} Nd7+ {[%emt 0:00:06]} 47. Kd5 {[%emt 0:00:03]} Nf6+ {[%emt 0:00:01]} 48. Kc4 {[%emt 0:00:03]} Kd7 {[%emt 0:00:05]} 49. c6+ {[%emt 0:00:13]} Kc7 {[%emt 0:00:03]} 50. Kc5 {[%emt 0:00:04]} Kc8 {[%emt 0:00:05]} 51. Ne6 {[%emt 0:00:15]} bxc6 {[%emt 0:00:07]} 52. Rc7# {[%emt 0:00:08]} 1-0

[Event "European Online Club-ch-G 2021"]
[Site "Online"]
[Date "2021.03.27"]
[Round "4.5"]
[White "Mica, Marek"]
[Black "Borhy, Marcell"]
[Result "0-1"]
[ECO "E11"]
[WhiteElo "2274"]
[BlackElo "2392"]
[Annotator "NA"]
[PlyCount "112"]
[EventDate "2021.03.27"]
[EventType "team-tourn"]
[EventCountry "NET"]
[SourceTitle "playchess.com"]
[Source "ChessBase"]
[SourceQuality "1"]
[TimeControl "900+5"]

1. Nf3 {[%emt 0:00:00]} d5 {[%emt 0:00:06]} 2. d4 {[%emt 0:00:02]} Nf6 {[%emt 0:00:06]} 3. c4 {[%emt 0:00:03]} e6 {[%emt 0:00:01]} 4. g3 {[%emt 0:00:09]} Bb4+ {[%emt 0:00:04]} 5. Bd2 {[%emt 0:00:09]} Be7 {[%emt 0:00:02]} 6. Bg2 {[%emt 0:00:04]} c6 {[%emt 0:00:02]} 7. Qc2 {[%emt 0:00:07]} Nbd7 {[%emt 0:00:02]} 8. O-O {[%emt 0:00:05]} b6 {[%emt 0:00:02]} 9. Bf4 {[%emt 0:00:26]} Ba6 {[%emt 0:00:05]} 10. Nbd2 {[%emt 0:00:57]} O-O {[%emt 0:00:11]} 11. Rfe1 {[%emt 0:01:44]} Nh5 {[%emt 0:00:05]} 12. Ne5 {[%emt 0:01:31]} Bb7 {[%emt 0:04:04]} 13. cxd5 {[%emt 0:01:41]} cxd5 {[%emt 0:00:48]} 14. Rec1 {[%emt 0:00:07]} Nxf4 {[%emt 0:00:49]} 15. gxf4 {[%emt 0:00:04]} Nxe5 {[%emt 0:00:02]} 16. fxe5 {[%emt 0:00:04]} Rc8 {[%emt 0:00:06]} 17. Qa4 {[%emt 0:00:54]} a6 {[%emt 0:00:05]} 18. b4 {[%emt 0:00:21]} Qe8 {[%emt 0:00:48]} 19. Qxe8 {[%emt 0:00:35]} Rfxe8 {[%emt 0:00:03]} 20. a3 {[%emt 0:00:21]} Bc6 {[%emt 0:01:08]} 21. Bf1 {[%emt 0:00:48]} Ba4 {[%emt 0:01:16]} 22. e3 {[%emt 0:00:15]} a5 {[%emt 0:00:18]} 23. b5 {[%emt 0:02:49]} Rxc1 {[%emt 0:02:31]} 24. Rxc1 {[%emt 0:00:13]} Bxa3 {[%emt 0:00:12]} 25. Rc6 {[%emt 0:00:07]} Bb4 {[%emt 0:00:04]} 26. Nb1 {[%emt 0:00:30]} Rb8 {[%emt 0:01:01]} 27. f4 {[%emt 0:00:19]} Bb3 {[%emt 0:00:16]} 28. Bd3 {[%emt 0:00:21]} a4 {[%emt 0:00:50]} 29. f5 {[%emt 0:00:11]} exf5 {[%emt 0:00:29]} 30. Bxf5 {[%emt 0:00:03]} Bc4 {[%emt 0:00:08]} 31. e6 {[%emt 0:00:37]} a3 {[%emt 0:00:36]} 32. Nxa3 {[%emt 0:00:24]} Bxa3 {[%emt 0:00:03]} 33. Rc7 {[%emt 0:00:19]} fxe6 {[%emt 0:00:13]} 34. Bxe6+ {[%emt 0:00:03]} Kh8 {[%emt 0:00:01]} 35. e4 {[%emt 0:00:54]} Bb2 {[%emt 0:00:53]} 36. Kg2 {[%emt 0:00:31]} Bxd4 {[%emt 0:00:05]} 37. exd5 {[%emt 0:00:01]} Bc5 {[%emt 0:00:04]} 38. h4 {[%emt 0:00:10]} Rd8 {[%emt 0:00:08]} 39. h5 {[%emt 0:00:04]} h6 {[%emt 0:00:02]} 40. Rd7 {[%emt 0:00:12]} Rxd7 {[%emt 0:00:02]} 41. Bxd7 {[%emt 0:00:02]} Bxd5+ {[%emt 0:00:01]} 42. Kh3 {[%emt 0:00:00]} g6 {[%emt 0:00:11]} 43. hxg6 {[%emt 0:00:04]} Kg7 {[%emt 0:00:01]} 44. Be8 {[%emt 0:00:01]} Be4 {[%emt 0:00:02]} 45. Kg4 {[%emt 0:00:06]} Bxg6 {[%emt 0:00:01]} 46. Bc6 {[%emt 0:00:02]} Kf6 {[%emt 0:00:02]} 47. Kh4 {[%emt 0:00:01]} Kf5 {[%emt 0:00:04]} 48. Bg2 {[%emt 0:00:04]} Kf4 {[%emt 0:00:04]} 49. Bc6 {[%emt 0:00:03]} Bf2+ {[%emt 0:00:07]} 50. Kh3 {[%emt 0:00:03]} Bf5+ {[%emt 0:00:10]} 51. Kg2 {[%emt 0:00:04]} Bd4 {[%emt 0:00:03]} 52. Kf1 {[%emt 0:00:02]} h5 {[%emt 0:00:03]} 53. Ke2 {[%emt 0:00:06]} h4 {[%emt 0:00:01]} 54. Kf1 {[%emt 0:00:08]} h3 {[%emt 0:00:06]} 55. Ke2 {[%emt 0:00:21]} Be4 {[%emt 0:00:01]} 56. Bd7 {[%emt 0:00:06]} h2 {[%emt 0:00:03]} 0-1

[Event "European Online Club-ch-G 2021"]
[Site "Online"]
[Date "2021.03.27"]
[Round "4.6"]
[White "Persanyi, Barnabas"]
[Black "Gnojek, Petr"]
[Result "1-0"]
[ECO "A87"]
[WhiteElo "2364"]
[BlackElo "2267"]
[Annotator "NA"]
[PlyCount "83"]
[EventDate "2021.03.27"]
[EventType "team-tourn"]
[EventCountry "NET"]
[SourceTitle "playchess.com"]
[Source "ChessBase"]
[SourceQuality "1"]
[TimeControl "900+5"]

1. Nf3 {[%emt 0:00:00]} g6 {[%emt 0:00:06]} 2. d4 {[%emt 0:00:06]} d6 {[%emt 0:00:04]} 3. g3 {[%emt 0:00:08]} Bg7 {[%emt 0:00:03]} 4. Bg2 {[%emt 0:00:01]} f5 {[%emt 0:00:08]} 5. O-O {[%emt 0:00:11]} Nf6 {[%emt 0:00:02]} 6. b3 {[%emt 0:00:11]} O-O {[%emt 0:00:54]} 7. Bb2 {[%emt 0:00:03]} c6 {[%emt 0:00:02]} 8. c4 {[%emt 0:00:30]} Qc7 {[%emt 0:00:09]} 9. Nbd2 {[%emt 0:00:23]} Re8 {[%emt 0:00:19]} 10. Qc2 {[%emt 0:00:52]} Na6 {[%emt 0:00:47]} 11. a3 {[%emt 0:00:17]} e5 {[%emt 0:00:08]} 12. c5 {[%emt 0:01:20]} e4 {[%emt 0:03:47]} 13. cxd6 {[%emt 0:00:29]} Qxd6 {[%emt 0:00:02]} 14. Ne5 {[%emt 0:00:51]} Nc7 {[%emt 0:00:03]} 15. Ndc4 {[%emt 0:00:42]} Qd8 {[%emt 0:00:25]} 16. a4 {[%emt 0:00:50]} Be6 {[%emt 0:01:22]} 17. Ba3 {[%emt 0:00:40]} Bxc4 {[%emt 0:00:44]} 18. Nxc4 {[%emt 0:01:33]} Re6 {[%emt 0:00:03]} 19. e3 {[%emt 0:00:13]} Ncd5 {[%emt 0:00:10]} 20. a5 {[%emt 0:00:17]} Qc7 {[%emt 0:00:50]} 21. a6 {[%emt 0:00:39]} b6 {[%emt 0:00:10]} 22. Ne5 {[%emt 0:00:55]} c5 {[%emt 0:01:36]} 23. Rac1 {[%emt 0:00:55]} Rc8 {[%emt 0:00:04]} 24. Bb2 {[%emt 0:00:38]} Nd7 {[%emt 0:01:37]} 25. Qc4 {[%emt 0:00:35]} Nxe5 {[%emt 0:00:32]} 26. Qxd5 {[%emt 0:00:44]} Qc6 {[%emt 0:00:02]} 27. Qxc6 {[%emt 0:00:09]} Nxc6 {[%emt 0:00:02]} 28. Rfd1 {[%emt 0:00:37]} Rd8 {[%emt 0:00:58]} 29. Bf1 {[%emt 0:00:29]} Red6 {[%emt 0:00:02]} 30. Bb5 {[%emt 0:00:36]} Nb8 {[%emt 0:01:59]} 31. Be2 {[%emt 0:00:06]} Kh8 {[%emt 0:00:10]} 32. Ba1 {[%emt 0:00:36]} cxd4 {[%emt 0:00:04]} 33. Bxd4 {[%emt 0:00:03]} Bxd4 {[%emt 0:00:07]} 34. Rxd4 {[%emt 0:00:01]} Rxd4 {[%emt 0:00:05]} 35. exd4 {[%emt 0:00:01]} Nd7 {[%emt 0:00:13]} 36. Rc7 {[%emt 0:00:03]} Nf6 {[%emt 0:00:04]} 37. Rxa7 {[%emt 0:00:03]} Ng8 {[%emt 0:00:07]} 38. Rb7 {[%emt 0:00:03]} Rc8 {[%emt 0:00:05]} 39. a7 {[%emt 0:00:03]} Rc1+ {[%emt 0:00:02]} 40. Kg2 {[%emt 0:00:03]} Ra1 {[%emt 0:00:01]} 41. Bb5 {[%emt 0:00:03]} g5 {[%emt 0:00:05]} 42. Ba4 {[%emt 0:00:03]} 1-0